[Event "Baku Open 2024"]
[Site "Baku"]
[Date "2024.07.01"]
[Round "3.17"]
[White "Ilamparthi A R"]
[Black "Saravana, Krishnan P."]
[Result "1-0"]
[ECO "A04"]
[WhiteElo "2446"]
[BlackElo "2236"]
[Annotator "TA"]
[PlyCount "71"]
[EventDate "2024.06.29"]
[EventType "swiss"]
[EventCountry "AZE"]
[SourceTitle "playchess.com"]
[Source "ChessBase"]
[SourceQuality "1"]
[TimeControl "5400+30"]

{[%evp 9,71,-16,20,11,17,0,0,0,0,0,0,0,0,0,0,6,14,18,0,9,0,0,0,0,0,0,5,0,0,-3,21,0,0,-4,-4,-3,-8,-4,0,0,0,0,0,0,20,22,7,0,0,0,41,44,112,114,179,178,349,238,822,822,795,807,766,754]} 1. Nf3 {[%emt 0:02:39]} Nf6 {[%emt 0:00:03]} 2. g3 {[%emt 0:00:09]} c5 {[%emt 0:00:27]} 3. Bg2 {[%emt 0:00:11]} Nc6 {[%emt 0:00:10]} 4. O-O {[%emt 0:00:15]} e5 {[%emt 0:01:01]} 5. d3 {[%emt 0:02:52]} d6 {[%emt 0:01:07]} 6. e4 {[%emt 0:01:45]} g6 {[%emt 0:00:46]} 7. Nc3 {[%emt 0:08:34]} Bg7 {[%emt 0:00:24]} 8. Nd2 {[%emt 0:00:09] The position is equal.} O-O {[%emt 0:01:31]} 9. Nc4 {[%emt 0:00:07]} Bg4 {[%emt 0:04:07]} 10. f3 {[%emt 0:01:35]} Be6 {[%emt 0:01:04]} 11. Ne3 {[%emt 0:02:09]} d5 {[%emt 0:12:51]} 12. exd5 {[%emt 0:02:17]} Bxd5 {[%emt 0:00:25]} 13. Nexd5 {[%emt 0:02:53]} (13. Ncxd5 {simplifies} Nxd5 14. c3 Nde7 15. a4) 13... Nxd5 {[%emt 0:00:54]} 14. Nxd5 {[%emt 0:00:12]} Qxd5 {[%emt 0:00:07]} 15. f4 {[%emt 0:00:32]} Qd4+ {[%emt 0:03:33]} 16. Kh1 {[%emt 0:01:07]} exf4 {[%emt 0:01:01]} 17. c3 {[%emt 0:03:17]} Qd7 {[%emt 0:05:42]} 18. Bxf4 {[%emt 0:00:19]} Rad8 {[%emt 0:02:26]} 19. Bg5 {[%emt 0:05:53]} f6 {[%emt 0:03:38]} 20. Be3 {[%emt 0:01:08] This pair of bishops is nice.} b6 {[%emt 0:01:09]} 21. Qa4 {[%emt 0:01:22]} Ne5 {[%emt 0:03:03]} 22. Qb3+ {[%emt 0:00:10]} Qf7 {[%emt 0:10:31]} 23. d4 $132 {[%emt 0:01:01][%mdl 2048] White is fighting back} Nc4 {[%emt 0:01:30]} 24. Bg1 {[%emt 0:00:21]} cxd4 {[%emt 0:01:51]} 25. cxd4 {[%emt 0:02:14]} f5 {[%emt 0:08:05]} 26. Rad1 {[%emt 0:05:48]} Kh8 {[%emt 0:05:26]} 27. Rfe1 {[%emt 0:04:56]} Nd6 {[%emt 0:04:46]} 28. Re6 {[%emt 0:05:16]} f4 {[%emt 0:02:26] White must now prevent ...f3.} 29. gxf4 {[%emt 0:10:24]} Nf5 {[%emt 0:01:23]} 30. d5 {[%emt 0:00:31][%cal Bd4d5,Bd5d6][%mdl 32]} Nh4 {[%emt 0:01:05] [#]} (30... Rd6 $14) 31. Be4 $1 $16 {[%emt 0:04:56]} Qxf4 {[%emt 0:05:18]} (31... Rde8 $16) 32. d6 $18 {[%emt 0:03:03]} Be5 $2 {[%emt 0:09:13]} (32... Nf5 {might work better.}) 33. Qd5 {[%emt 0:02:21]} Bxb2 {[%emt 0:02:21]} (33... Bg7 34. d7 Nf5) 34. Bd4+ {[%emt 0:02:48] White is clearly winning.} Bxd4 {[%emt 0:00:07]} 35. Qxd4+ {[%emt 0:00:05]} Kg8 {[%emt 0:00:08] [#]} 36. Re8 $3 {[%emt 0:00:10][%mdl 512] Weighted Error Value: White=0.10 (very precise) /Black=0.21 (precise) .  Mistake:       	---       	Black=4      Inaccurate:     	White=1     	Black=1      OK:         	White=9     	Black=15     Best:        	White=3     	Black=1      Strong:       	White=1     	---} 1-0

[Event "Baku Open 2024"]
[Site "Baku"]
[Date "2024.07.01"]
[Round "3.18"]
[White "Davidov, Samir"]
[Black "Suyarov, Mukhammadzokhid"]
[Result "1/2-1/2"]
[ECO "A06"]
[WhiteElo "2244"]
[BlackElo "2430"]
[Annotator "TA"]
[PlyCount "59"]
[EventDate "2024.06.29"]
[EventType "swiss"]
[EventCountry "AZE"]
[SourceTitle "playchess.com"]
[Source "ChessBase"]
[SourceQuality "1"]
[TimeControl "5400+30"]

{[%evp 9,59,15,7,0,9,4,10,9,4,0,0,-10,0,-14,4,0,0,0,0,-13,0,-29,-35,-39,-8,-6,-14,-17,4,0,0,0,0,-9,0,0,14,0,27,19,23,14,95,28,28,45,50,0,14,34,36,36]} 1. Nf3 {[%emt 0:03:22]} Nf6 {[%emt 0:00:52]} 2. b3 {[%emt 0:00:57]} d5 {[%emt 0:02:51]} 3. e3 {[%emt 0:00:53]} c5 {[%emt 0:00:52]} 4. Bb2 {[%emt 0:02:51]} Nc6 {[%emt 0:04:03]} 5. Bb5 {[%emt 0:01:40]} Bd7 {[%emt 0:00:46]} 6. Bxc6 {[%emt 0:01:24]} Bxc6 {[%emt 0:04:10]} 7. O-O {[%emt 0:00:11][%cal Bh1f1,Bf1f3,Bf3g3][%mdl 32]} e6 {[%emt 0:01:08]} 8. Ne5 {[%emt 0:01:27] The position is equal.} Bd6 {[%emt 0:01:03]} 9. f4 {[%emt 0:06:45]} O-O {[%emt 0:02:01]} 10. Rf3 {[%emt 0:22:28]} Bxe5 {[%emt 0:01:56]} 11. fxe5 {[%emt 0:00:05]} Nd7 {[%emt 0:00:26][%cal Od5d4]} 12. Rg3 {[%emt 0:00:20]} f6 {[%emt 0:07:08]} 13. exf6 {[%emt 0:00:30]} Nxf6 {[%emt 0:00:13]} 14. d3 {[%emt 0:02:55]} Qc7 {[%emt 0:04:20]} 15. Qe1 {[%emt 0:07:40]} e5 {[%emt 0:07:56]} 16. Nd2 {[%emt 0:00:45]} Rae8 {[%emt 0:05:15]} 17. Qe2 {[%emt 0:02:50]} d4 {[%emt 0:07:23]} 18. e4 {[%emt 0:00:20] Inhibits Nd5.} Qe7 {[%emt 0:01:29]} 19. Rf1 {[%emt 0:00:42]} b5 {[%emt 0:05:43]} 20. Bc1 {[%emt 0:13:02]} h6 {[%emt 0:02:52]} 21. Rf2 {[%emt 0:07:00]} Bd7 {[%emt 0:04:33]} 22. h3 {[%emt 0:00:13]} g5 {[%emt 0:02:01]} 23. Nf1 {[%emt 0:02:26] And now h4 would win.} Kh7 {[%emt 0:06:07]} 24. Nh2 {[%emt 0:00:48]} Qg7 {[%emt 0:06:03]} 25. Rgf3 {[%emt 0:01:24]} Re7 {[%emt 0:01:38]} (25... Be6 $11 {remains equal.}) 26. Qf1 {[%emt 0:08:39]} (26. c3 $16) 26... Ref7 $11 {[%emt 0:01:53]} 27. g4 {[%emt 0:00:51]} Be6 {[%emt 0:02:42]} 28. Ba3 {[%emt 0:00:29]} (28. Qe1 $14) 28... b4 {[%emt 0:02:05]} 29. Bc1 {[%emt 0:00:05]} Kg8 {[%emt 0:00:34]} 30. Qg2 {[%emt 0:02:32] Weighted Error Value: White=0.12 (very precise) /Black=0.13 (very precise) .  Mistake:       	White=2     	Black=1      Inaccurate:     	White=1     	Black=2      OK:         	White=9     	Black=4      Best:        	---       	Black=2} 1/2-1/2

[Event "Baku Open 2024"]
[Site "Baku"]
[Date "2024.07.01"]
[Round "3.19"]
[White "Zverev, Lev"]
[Black "Rustamov, Rustam"]
[Result "1-0"]
[ECO "B55"]
[WhiteElo "2416"]
[BlackElo "2285"]
[Annotator "TA"]
[PlyCount "87"]
[EventDate "2024.06.29"]
[EventType "swiss"]
[EventCountry "AZE"]
[SourceTitle "playchess.com"]
[Source "ChessBase"]
[SourceQuality "1"]
[TimeControl "5400+30"]

{[%evp 11,87,19,15,27,25,24,29,23,34,0,14,0,12,20,7,19,0,0,0,0,0,0,0,0,0,0,0,0,0,0,16,21,14,4,14,0,23,17,13,0,0,0,16,0,5,11,8,6,345,332,451,452,439,325,325,306,336,336,409,326,416,410,381,356,355,348,526,522,600,559,1008,993,993,676,661,654,613,593]} 1. e4 {[%emt 0:05:08]} c5 {[%emt 0:00:14]} 2. Nf3 {[%emt 0:00:06]} d6 {[%emt 0:00:08]} 3. d4 {[%emt 0:00:11]} cxd4 {[%emt 0:00:13]} 4. Nxd4 {[%emt 0:00:07]} Nf6 {[%emt 0:00:09]} 5. f3 {[%emt 0:00:07]} e5 {[%emt 0:00:34]} 6. Nb3 {[%emt 0:00:17]} d5 {[%emt 0:00:52]} 7. Bg5 {[%emt 0:00:26]} d4 {[%emt 0:03:04]} 8. c3 {[%emt 0:00:19]} Nc6 {[%emt 0:01:00]} 9. cxd4 {[%emt 0:00:38] Strongly threatening d5. White has an edge.} Bb4+ {[%emt 0:01:11]} 10. Bd2 {[%emt 0:00:54][%cal Bg5d2,Bd2b4,Bb4c5][%mdl 32]} Nxe4 {[%emt 0:00:33]} 11. Bxb4 {[%emt 0:00:21][%cal Og2g3]} Qh4+ {[%emt 0:01:10]} 12. g3 {[%emt 0:00:11]} Nxg3 {[%emt 0:00:16]} 13. hxg3 {[%emt 0:00:06]} Qxh1 {[%emt 0:00:03]} 14. Bc5 {[%emt 0:00:20]} Bh3 {[%emt 0:02:14]} 15. N1d2 {[%emt 0:00:08] Threatens to win with dxe5.} O-O-O {[%emt 0:02:19][%cal Re5d4]} 16. Qc2 {[%emt 0:00:17] [#] Hoping for 0-0-0.} Bxf1 {[%emt 0:01:32]} 17. O-O-O {[%emt 0:00:13]} Qh6 {[%emt 0:04:12]} 18. Rxf1 {[%emt 0:00:18] And now dxe5 would win.} b6 $1 {[%emt 0:09:45]} 19. Ba3 {[%emt 0:33:20]} Kb8 {[%emt 0:12:08]} 20. Qf5 {[%emt 0:15:43]} Qg6 {[%emt 0:02:46]} 21. Qxg6 {[%emt 0:05:44]} hxg6 {[%emt 0:02:34]} 22. dxe5 {[%emt 0:00:06]} Nxe5 {[%emt 0:00:09]} 23. Ne4 {[%emt 0:09:04]} Nc4 {[%emt 0:01:58] Wards off Bd6+} (23... Rc8+ $5 24. Kb1 Nxf3 $11) 24. Bb4 {[%emt 0:02:04]} Rh2 {[%emt 0:01:43]} 25. Nbd2 {[%emt 0:05:39]} Ne3 {[%emt 0:11:39]} 26. Re1 {[%emt 0:00:16]} Nd5 {[%emt 0:01:05]} 27. Bd6+ {[%emt 0:02:39]} Ka8 {[%emt 0:00:14] [#] aiming for ...f5.} 28. Ba3 {[%emt 0:05:11]} Re8 {[%emt 0:03:33] ...f5 would now be deadly.} 29. Nf1 {[%emt 0:00:47]} Rf2 {[%emt 0:11:26][%mdl 8192] A mistake that costs the game.} (29... Rg2 $11 {and Black stays safe.} 30. Rd1 Rc8+ 31. Kb1 Rg1) 30. Ne3 $18 {[%emt 0:00:49]} Rxf3 {[%emt 0:05:30]} 31. Nxd5 {[%emt 0:00:10]} Kb8 {[%emt 0:02:03] Repels Nc7} 32. Ne7 {[%emt 0:03:45] Nd6 is the strong threat.} Rxa3 {[%emt 0:01:08]} 33. Nd6 {[%emt 0:00:22]} (33. bxa3 Rxe7 34. Kd2 Kc7 35. Rc1+ Kd7 $18) 33... Rxe7 {[%emt 0:02:22]} 34. Rxe7 {[%emt 0:00:10]} Rxg3 {[%emt 0:00:02][%mdl 4096] Endgame. KRN-KR} 35. Rb7+ {[%emt 0:00:20]} ({Don't play} 35. Nxf7 Rg1+ 36. Kc2 Rg2+ 37. Kb3 Rg3+ 38. Ka4 Rg4+ 39. b4 Rg2 $18) ({Don't do} 35. Rxf7 g5 36. Rb7+ (36. Rxg7 Rg2 $18) 36... Ka8 37. Rxg7 Kb8 $18) 35... Ka8 {[%emt 0:00:02]} 36. Rxf7 {[%emt 0:00:06][%cal Rf7f8]} a6 {[%emt 0:00:02]} 37. a3 {[%emt 0:02:05]} g5 {[%emt 0:00:33]} 38. Rxg7 {[%emt 0:00:10]} g4 {[%emt 0:00:06]} (38... Rg2 {keeps fighting.} 39. Kb1 b5) 39. Nc4 {[%emt 0:00:10] White is clearly winning.} Rg1+ {[%emt 0:00:30]} 40. Kc2 {[%emt 0:00:07]} g3 {[%emt 0:00:52]} 41. Nxb6+ {[%emt 0:00:36]} Kb8 {[%emt 0:00:02]} 42. Nc4 {[%emt 0:00:11]} Kc8 {[%emt 0:00:06]} 43. Nd6+ {[%emt 0:00:16]} Kd8 {[%emt 0:00:03]} 44. Nf5 {[%emt 0:00:00] Weighted Error Value: White=0.18 (very precise) /Black=0.30.  Loses game:     	---       	Black=1      Mistake:       	---       	Black=1      Inaccurate:     	---       	Black=2      OK:         	White=18    	Black=11     Best:        	White=5     	Black=5      Strong:       	---       	Black=1} 1-0

[Event "Baku Open 2024"]
[Site "Baku"]
[Date "2024.07.01"]
[Round "3.20"]
[White "Aleksandrov, Aleksej"]
[Black "Md Imran"]
[Result "1-0"]
[ECO "D30"]
[WhiteElo "2405"]
[BlackElo "2180"]
[Annotator "TA"]
[PlyCount "157"]
[EventDate "2024.06.29"]
[EventType "swiss"]
[EventCountry "AZE"]
[SourceTitle "playchess.com"]
[Source "ChessBase"]
[SourceQuality "1"]
[TimeControl "5400+30"]

{[%evp 54,157,67,55,54,10,19,27,52,12,29,19,40,28,232,229,220,219,236,235,224,234,218,158,169,90,85,102,80,65,64,68,77,69,69,67,68,69,68,65,83,57,54,0,89,0,51,45,51,43,50,52,49,51,51,49,47,48,51,51,59,52,166,161,170,154,221,222,222,222,222,222,207,0,207,0,200,185,254,252,245,245,473,466,492,502,675,667,639,437,605,549,776,652,1292,618,588,523,1158,1089,1701,1544,2554,1992,1855,1555]} 1. d4 {[%emt 0:00:05]} d5 {[%emt 0:00:01]} 2. c4 {[%emt 0:00:06]} dxc4 {[%emt 0:00:05]} 3. e3 {[%emt 0:00:44]} Nf6 {[%emt 0:00:07]} 4. Bxc4 {[%emt 0:01:39]} e6 {[%emt 0:00:02]} 5. a3 {[%emt 0:02:14]} c5 {[%emt 0:00:19]} 6. Nf3 {[%emt 0:00:09]} a6 {[%emt 0:00:03] D30: Queen's Gambit Declined: Systems without Nc3.} 7. dxc5 {[%emt 0:00:32]} Qd6 {[%emt 1:33:23]} 8. Qd2 Qxd2+ {[%emt 0:00:00]} 9. Kxd2 {[%emt 0:00:33]} Bxc5 {[%emt 0:00:00]} 10. Ke2 {[%emt 0:00:41]} b5 {[%emt 0:00:00]} 11. Bd3 {[%emt 0:00:15]} Bb7 {[%emt 0:00:00]} 12. Nbd2 {[%emt 0:01:08]} Nbd7 {[%emt 0:00:00]} 13. b4 {[%emt 0:07:19]} Bd6 {[%emt 0:00:00]} 14. Bb2 {[%emt 0:00:04]} O-O $146 {[%emt 0:00:00]} ({Predecessor:} 14... Nb6 15. Rac1 Rc8 16. Rxc8+ Nxc8 17. Rc1 Nb6 18. g3 O-O 19. Bd4 Nbd7 20. e4 e5 21. Bb2 Rc8 22. Rxc8+ Bxc8 {½-½ Ilincic,Z (2289)-Xiao,T (2452) Budapest SixDays 09 GM 2023 (8)}) 15. Rhd1 {[%emt 0:09:34]} Rac8 {[%emt 0:00:00]} 16. Rac1 {[%emt 0:00:59]} Rfd8 {[%emt 0:00:00]} 17. e4 {[%emt 0:04:31]} Be7 {[%emt 0:00:00]} 18. Bd4 {[%emt 0:10:19]} Kf8 {[%emt 0:00:00]} 19. h3 {[%emt 0:01:34]} h6 {[%emt 0:00:00]} 20. g3 {[%emt 0:04:45]} Ne8 {[%emt 0:00:00]} 21. Nb3 {[%emt 0:01:29]} Nd6 {[%emt 0:00:00]} 22. Nfd2 {[%emt 0:02:33]} f5 {[%emt 0:00:00]} 23. exf5 {[%emt 0:10:57]} Nxf5 {[%emt 0:00:00]} 24. Be4 {[%emt 0:01:09]} Bd5 {[%emt 0:00:00]} 25. Bxd5 {[%emt 0:02:41]} exd5 {[%emt 0:00:00]} 26. Nf3 {[%emt 0:00:30]} Nd6 {[%emt 0:00:00]} 27. Bc5 {[%emt 0:16:12]} Nc4 {[%emt 0:00:00]} 28. Bxe7+ {[%emt 0:03:35]} (28. Rxd5 Nxc5 29. Rxd8+ Rxd8) 28... Kxe7 {[%emt 0:00:00]} 29. Nfd4 {[%emt 0:00:35]} Re8 {[%emt 0:00:00]} 30. Kf1 {[%emt 0:02:59]} Kf6 {[%emt 0:00:00]} 31. Ra1 {[%emt 0:06:25]} g5 {[%emt 0:00:00]} 32. Ra2 {[%emt 0:00:20]} h5 {[%emt 0:00:00]} 33. a4 {[%emt 0:00:56]} a5 $2 {[%emt 0:00:00]} (33... bxa4 $11 34. Rxa4 a5) 34. axb5 $18 {[%emt 0:01:51]} ({Not} 34. bxa5 bxa4 35. Nd2 (35. Rxa4 Nb2 $17) 35... Nde5 $14) 34... axb4 {[%emt 0:00:00]} 35. Nc6 {[%emt 0:00:06]} Ncb6 {[%emt 0:00:00]} 36. Nxb4 {[%emt 0:02:44]} Rc3 {[%emt 0:00:00]} 37. Nd4 {[%emt 0:00:06]} (37. Nxd5+ Nxd5 38. Rxd5 Rxb3 $16) 37... h4 {[%emt 0:00:00]} 38. Rc2 {[%emt 0:01:02]} Rec8 {[%emt 0:00:00]} 39. Nbc6 {[%emt 0:02:51]} (39. Re2 $18) 39... Rxc2 $16 {[%emt 0:00:00]} 40. Nxc2 {[%emt 0:00:01]} Ne5 {[%emt 0:00:00]} 41. gxh4 {[%emt 0:01:36]} gxh4 {[%emt 0:00:00]} 42. N2b4 {[%emt 0:00:19]} Nxc6 {[%emt 0:00:00]} 43. Nxc6 {[%emt 0:00:04]} Ke6 $1 {[%emt 0:00:00]} 44. Rd4 {[%emt 0:00:30]} Rh8 {[%emt 0:00:00]} 45. Nb4 {[%emt 0:01:22]} Kd6 $1 {[%emt 0:00:00]} 46. Nd3 {[%emt 0:00:04]} Nc4 {[%emt 0:00:00]} 47. Nf4 {[%emt 0:00:13]} Nb6 $1 {[%emt 0:00:00]} 48. Nd3 {[%emt 0:01:38]} Nc4 {[%emt 0:00:00]} 49. Nf4 {[%emt 0:00:19]} Nb6 $1 {[%emt 0:00:00]} 50. Ng6 {[%emt 0:00:03]} Rh6 {[%emt 0:00:00]} 51. Nxh4 {[%emt 0:00:09]} (51. Rxh4 $2 {loses.} Rxg6 52. Ke1 Re6+ 53. Kd2 Rf6 $19) 51... Kc5 {[%emt 0:00:00]} 52. Rg4 {[%emt 0:00:05]} Kxb5 {[%emt 0:00:00]} 53. Kg2 {[%emt 0:00:08]} Kc5 {[%emt 0:00:00]} 54. Nf5 {[%emt 0:00:06]} Rf6 {[%emt 0:00:00]} 55. Ng3 {[%emt 0:01:04]} Nc4 {[%emt 0:00:00]} 56. h4 {[%emt 0:00:10]} Ne5 {[%emt 0:00:00]} 57. Rg5 {[%emt 0:00:12]} Kd6 {[%emt 0:00:00]} ({Black should play} 57... Kd4 $14) 58. Nf5+ $18 {[%emt 0:00:15]} Kd7 {[%emt 0:00:00]} 59. Ne3 {[%emt 0:01:09]} Nf3 {[%emt 0:00:00]} (59... Ng6 $16 {might work better.}) 60. Rxd5+ $18 {[%emt 0:00:06]} Ke6 {[%emt 0:00:00]} 61. h5 {[%emt 0:02:35]} Ne1+ {[%emt 0:00:00]} 62. Kg1 {[%emt 0:00:30]} Nf3+ {[%emt 0:00:00]} 63. Kg2 {[%emt 0:00:12]} Ne1+ {[%emt 0:00:00]} 64. Kg1 {[%emt 0:00:16]} Nf3+ $1 {[%emt 0:00:00]} 65. Kf1 {[%emt 0:00:07]} Rf4 {[%emt 0:00:00]} (65... Kf7 $142 66. Rd7+ Kg8) 66. Ra5 $18 {[%emt 0:00:53]} Nd2+ {[%emt 0:00:00]} 67. Kg2 {[%emt 0:01:50]} Ne4 $2 {[%emt 0:00:00]} (67... Kf7 {is a better defense.} 68. f3 Kf8) 68. f3 $18 {[%emt 0:01:03]} Nd2 {[%emt 0:00:00]} 69. Ra6+ {[%emt 0:00:16]} Kf7 {[%emt 0:00:00]} 70. Ng4 {[%emt 0:00:14]} Kg8 {[%emt 0:00:00]} 71. Ra3 {[%emt 0:00:27]} Kh7 {[%emt 0:00:00]} 72. Kg3 {[%emt 0:01:00]} Rf5 {[%emt 0:00:00]} 73. Rd3 {[%emt 0:00:10]} Nc4 {[%emt 0:00:00]} 74. f4 {[%emt 0:02:12]} (74. Rd7+ $142 Kh8 75. Rd8+ Kg7 76. h6+ Kh7 77. Rd7+ Kh8 78. f4) 74... Rf7 $18 {[%emt 0:00:00]} 75. Rd4 {[%emt 0:00:00]} Na5 {[%emt 0:00:00]} 76. Ne5 {[%emt 0:00:00]} Rg7+ {[%emt 0:00:00]} 77. Kh4 {[%emt 0:00:00]} Nb7 {[%emt 0:00:00]} 78. Rd5 {[%emt 0:00:00]} Rc7 {[%emt 0:00:00]} 79. Ng4 {[%emt 0:00:10]} 1-0

[Event "Baku Open 2024"]
[Site "Baku"]
[Date "2024.07.01"]
[Round "3.21"]
[White "Israilov, Agil"]
[Black "Fataliyeva, Ulviyya"]
[Result "1/2-1/2"]
[ECO "C55"]
[WhiteElo "2141"]
[BlackElo "2399"]
[Annotator "TA"]
[PlyCount "77"]
[EventDate "2024.06.29"]
[EventType "swiss"]
[EventCountry "AZE"]
[SourceTitle "playchess.com"]
[Source "ChessBase"]
[SourceQuality "1"]
[TimeControl "5400+30"]

{[%evp 21,77,8,14,0,0,0,10,0,10,-17,0,-9,-6,-10,-4,0,-4,-2,0,0,0,-22,-11,-17,-20,-22,0,0,43,0,62,48,51,13,28,37,41,3,7,14,97,46,41,31,22,19,11,11,9,0,0,0,0,0,0,0,0,0]} 1. e4 {[%emt 0:00:02]} e5 {[%emt 0:00:04]} 2. Nf3 {[%emt 0:00:04]} Nc6 {[%emt 0:00:04]} 3. Bb5 {[%emt 0:00:07][%cal Bf1b5,Bb5a4,Ba4b3][%mdl 32]} a6 {[%emt 0:00:05]} 4. Ba4 {[%emt 0:00:04]} Nf6 {[%emt 0:00:04]} 5. O-O {[%emt 0:00:06]} Be7 {[%emt 0:00:03]} 6. d3 {[%emt 0:00:05]} b5 {[%emt 0:00:07]} 7. Bb3 {[%emt 0:00:05]} d6 {[%emt 0:00:06]} 8. a4 {[%emt 0:00:07]} Bd7 {[%emt 0:01:32]} 9. c3 {[%emt 0:00:25]} Na5 {[%emt 0:01:24]} 10. Bc2 {[%emt 0:00:20]} c5 {[%emt 0:00:46]} 11. Nbd2 {[%emt 0:02:35][%cal Bb1d2,Bd2f1,Bf1g3][%mdl 32]} O-O {[%emt 0:00:18]} 12. axb5 {[%emt 0:00:57]} axb5 {[%emt 0:00:10]} 13. Re1 {[%emt 0:00:10]} h6 {[%emt 0:01:20]} 14. Nf1 {[%emt 0:00:29]} Qc7 {[%emt 0:01:03]} 15. Ng3 {[%emt 0:00:47]} Rfe8 {[%emt 0:00:22][%cal Bf8e8,Be8a8,Ba8a1][%mdl 32]} 16. Nh4 {[%emt 0:05:05]} Bg4 {[%emt 0:13:44]} 17. f3 {[%emt 0:03:25]} Bd7 {[%emt 0:00:14][%cal Of6e4]} 18. Nhf5 {[%emt 0:01:31]} Bf8 {[%emt 0:00:32]} 19. f4 {[%emt 0:02:16]} Nc6 {[%emt 0:03:49][%cal Ba5c6,Bc6e5,Be5g6][%mdl 32]} 20. Rxa8 {[%emt 0:00:23]} Rxa8 {[%emt 0:00:02]} 21. Rf1 {[%emt 0:02:51]} Ra1 {[%emt 0:06:17]} 22. fxe5 {[%emt 0:13:18]} Nxe5 {[%emt 0:00:16]} 23. Qe2 {[%emt 0:07:38]} Qa7 {[%emt 0:05:03]} 24. h3 {[%emt 0:09:17][%cal Bh2h3,Bh3h4][%mdl 32]} Qa2 {[%emt 0:09:59]} 25. Qf2 {[%emt 0:02:05][%cal Of5h6]} Nh7 {[%emt 0:12:27]} (25... Be6 $11) 26. d4 $14 {[%emt 0:04:31]} Ng6 {[%emt 0:01:39]} 27. h4 {[%emt 0:07:02]} (27. Ne3 {feels hotter.} Qe6 28. Nh5 Ng5 29. Nd5) 27... Bxf5 {[%emt 0:05:24]} 28. Nxf5 {[%emt 0:00:41] [#] And now h5 would win.} h5 {[%emt 0:00:49]} 29. Qe2 {[%emt 0:09:39][%csl LRb5,LRh5]} b4 {[%emt 0:03:40]} 30. cxb4 {[%emt 0:03:11] With the idea e5.} (30. Qxh5 $2 bxc3 31. Qf3 cxb2 $19) 30... cxb4 {[%emt 0:01:20]} (30... cxd4 $1 $11 31. Nxd4 Qa7) 31. Qf3 {[%emt 0:03:20] White is more active.} (31. Qxh5 $16 {aiming for Qf3.} d5 32. Qe2) 31... Nf6 {[%emt 0:04:02]} 32. Bb3 {[%emt 0:04:44]} Qa7 $1 {[%emt 0:00:29] [#]} 33. Nh6+ $1 {[%emt 0:11:01] The position is equal.} Kh7 $1 {[%emt 0:00:06]} 34. Nxf7 {[%emt 0:00:04]} Qxd4+ {[%emt 0:00:11]} 35. Kh1 {[%emt 0:00:13] Strongly threatening Ng5+.} Qc5 {[%emt 0:02:58]} (35... Nxh4 $2 {is the wrong capture.} 36. Ng5+ Kh6 37. Ne6+ Kh7 38. Qe2 $18 (38. Nxf8+ Kh8 $18) (38. Nxd4 Nxf3 39. gxf3 g6 $18)) 36. Ng5+ {[%emt 0:00:40]} Kh8 {[%emt 0:00:04]} 37. Nf7+ {[%emt 0:02:24]} Kh7 {[%emt 0:00:06]} 38. Ng5+ {[%emt 0:00:15]} Kh8 {[%emt 0:00:02]} 39. Nf7+ {[%emt 0:05:16] Weighted Error Value: White=0.11 (very precise) /Black=0.13 (very precise) .  Mistake:       	White=1     	Black=2      Inaccurate:     	White=4     	Black=1      OK:         	White=11    	Black=7      Best:        	White=1     	Black=3      Strong:       	---       	Black=2} 1/2-1/2